bitfinex/quotes_SOLUSD_20230112
["timestamp","ask_amount","ask_price","bid_price","bid_amount"]
[1673517342041,46.56,16.109,16.095,32.55385139]
[1673517342435,46.56,16.109,16.096,20.0]
[1673517343083,46.55,16.114,16.1,13.1]
[1673517343289,118.0596,16.119,16.101,66.58]
[1673517343290,46.54,16.118,16.101,66.58]
[1673517343512,46.54,16.118,16.101,127.31306539]
[1673517343703,46.54,16.118,16.102,107.06087321]
[1673517343918,118.0596,16.119,16.103,86.58]
[1673517344119,118.0596,16.119,16.103,193.64087321]
[1673517344327,118.0596,16.119,16.104,108.02087321]
[1673517344671,118.0596,16.119,16.106,20.0]
[1673517344979,118.0596,16.119,16.108,20.0]
[1673517353477,118.0596,16.119,16.109,0.96]
[1673517355578,46.51,16.127,16.11,25.65385139]
[1673517355788,20.0,16.126,16.111,20.96]
[1673517356103,46.52,16.125,16.111,20.96]
[1673517356313,20.0,16.124,16.111,20.96]
[1673517356523,46.52,16.123,16.111,20.96]
[1673517356959,20.0,16.124,16.111,20.96]
[1673517357170,20.0,16.125,16.111,20.96]
[1673517357362,46.52,16.124,16.111,20.96]
[1673517357992,46.52,16.124,16.111,33.51385139]
[1673517358203,46.52,16.124,16.111,13.51385139]
[1673517359380,46.52,16.124,16.113,20.0]
[1673517359592,46.51,16.126,16.114,20.96]
[1673517359810,46.51,16.126,16.114,20.0]
[1673517367263,46.51,16.126,16.114,19.92585449]
[1673517367789,156.1283,16.127,16.114,19.92585449]
[1673517369778,156.1283,16.127,16.115,13.51385139]
[1673517369995,156.1283,16.127,16.116,20.0]
[1673517370188,109.6183,16.127,16.117,0.96]
[1673517373659,109.6183,16.127,16.116,20.0]
[1673517375796,109.6183,16.127,16.115,32.55385139]
[1673517376114,66.51,16.126,16.112,48.179214]
[1673517376301,66.51,16.126,16.11,118.6118]
[1673517376302,17.0,16.125,16.11,118.6118]
[1673517376511,20.0,16.123,16.11,118.6118]
[1673517376723,46.52,16.122,16.11,118.6118]
[1673517377138,20.0,16.123,16.11,118.6118]
[1673517377350,63.52,16.122,16.11,118.6118]
[1673517380421,46.52,16.122,16.11,118.6118]
[1673517380738,46.52,16.125,16.11,118.6118]
[1673517380924,20.0,16.124,16.11,118.6118]
[1673517381133,46.52,16.123,16.111,20.96]
[1673517381349,20.0,16.124,16.111,20.96]
[1673517381558,46.52,16.123,16.111,20.96]
[1673517381779,46.52,16.124,16.111,20.96]
[1673517382394,46.52,16.124,16.111,20.0]
[1673517382816,17.0,16.123,16.111,20.0]
[1673517383236,46.52,16.122,16.11,118.6118]
[1673517384184,46.52,16.124,16.11,118.6118]
[1673517384815,46.52,16.124,16.111,33.51385139]
[1673517385030,46.5,16.129,16.111,79.01385139]
[1673517385240,46.51,16.126,16.112,12.55385139]
[1673517385458,13.1,16.12,16.11,118.6118]
[1673517386505,13.1,16.12,16.106,45.31]
[1673517386728,13.1,16.12,16.105,32.55385139]
[1673517387466,13.1,16.12,16.107,20.0]
[1673517387786,13.1,16.12,16.108,0.96]
[1673517388942,17.0,16.119,16.105,57.49]
[1673517389156,17.0,16.119,16.105,32.55385139]
[1673517389351,63.53,16.119,16.105,32.55385139]
[1673517390391,63.53,16.119,16.104,20.0]
[1673517390725,63.53,16.119,16.105,20.0]
[1673517392598,63.53,16.119,16.103,20.0]
[1673517392809,172.3152,16.119,16.103,20.0]
[1673517393046,172.3152,16.119,16.104,20.0]
[1673517393346,172.3152,16.119,16.105,20.0]
[1673517393566,172.3152,16.119,16.105,32.55385139]
[1673517395457,172.3152,16.119,16.105,20.0]
[1673517395773,172.3152,16.119,16.104,20.0]
[1673517395983,172.3152,16.119,16.103,20.0]
[1673517396376,155.3152,16.119,16.103,32.55385139]
[1673517397017,155.3152,16.119,16.103,20.0]
[1673517397452,155.3152,16.119,16.103,32.55385139]
[1673517397862,17.0,16.118,16.103,32.55385139]
[1673517398072,46.54,16.117,16.103,32.55385139]
[1673517405656,108.7852,16.119,16.104,0.96]
[1673517405851,155.3152,16.119,16.106,20.0]
[1673517406061,155.3152,16.119,16.107,0.96]
[1673517406270,108.7852,16.119,16.107,13.51385139]
[1673517406925,108.7852,16.119,16.107,12.55385139]
[1673517408904,155.3152,16.119,16.107,12.55385139]
[1673517410292,155.3152,16.119,16.104,139.2025]
[1673517410496,17.0,16.118,16.105,20.0]
[1673517410688,46.54,16.117,16.105,20.0]
[1673517414913,46.54,16.118,16.105,32.55385139]
[1673517415108,155.3152,16.119,16.106,20.96]
[1673517420374,17.0,16.118,16.105,32.55385139]
[1673517420589,46.54,16.117,16.105,20.0]
[1673517420786,17.0,16.116,16.104,20.0]
[1673517420998,46.54,16.115,16.104,20.0]
[1673517421322,46.54,16.115,16.104,40.0]
[1673517421518,46.54,16.118,16.104,52.55385139]
[1673517422369,17.0,16.117,16.104,32.55385139]
[1673517422581,46.54,16.116,16.104,32.55385139]
[1673517422795,46.54,16.118,16.104,32.55385139]
[1673517423014,227.2741,16.119,16.105,20.96]
[1673517423319,227.2741,16.119,16.106,13.51385139]
[1673517423636,227.2741,16.119,16.107,12.55385139]
[1673517426259,273.8041,16.119,16.107,12.55385139]
[1673517428157,227.2741,16.119,16.107,12.55385139]
[1673517428469,273.8041,16.119,16.106,0.96]
[1673517428683,273.8041,16.119,16.106,13.51385139]
[1673517429522,273.8041,16.119,16.107,0.96]
[1673517429841,273.8041,16.119,16.106,13.51385139]
[1673517438335,273.8041,16.119,16.106,0.96]
[1673517439406,273.8041,16.119,16.107,20.0]
[1673517439407,46.53,16.119,16.107,20.0]
[1673517439622,158.0565,16.126,16.108,1.92]
[1673517439832,20.0,16.125,16.108,14.47385139]
[1673517440040,46.52,16.124,16.108,14.47385139]
[1673517440439,46.52,16.125,16.108,12.55385139]
[1673517440655,20.0,16.123,16.109,0.96]
[1673517440869,46.52,16.122,16.109,0.96]
[1673517441078,46.52,16.123,16.109,0.96]
[1673517442659,46.52,16.123,16.107,20.0]
[1673517442875,46.52,16.123,16.108,0.96]
[1673517443602,46.52,16.123,16.109,0.96]
[1673517444352,46.52,16.123,16.107,20.0]
[1673517444564,12.99,16.12,16.106,12.55385139]
[1673517444770,46.53,16.119,16.106,12.55385139]
[1673517446035,46.53,16.119,16.107,20.96]
[1673517446351,46.53,16.119,16.107,33.51385139]
[1673517446553,46.52,16.123,16.107,33.51385139]
[1673517450555,46.52,16.123,16.107,20.96]
[1673517450770,46.52,16.123,16.107,20.0]
[1673517450982,17.0,16.122,16.107,20.0]
[1673517451177,46.53,16.121,16.107,20.0]
[1673517451720,46.53,16.121,16.106,12.55385139]
[1673517458443,13.03,16.12,16.106,12.55385139]
[1673517458659,46.53,16.119,16.106,12.55385139]
[1673517460329,46.53,16.119,16.107,0.96]
[1673517460555,46.53,16.119,16.107,21.92]
[1673517464650,13.03,16.12,16.107,21.92]
[1673517464963,13.03,16.12,16.107,34.47385139]
[1673517467041,46.53,16.119,16.107,34.47385139]
[1673517467254,13.03,16.12,16.107,34.47385139]
[1673517467693,13.03,16.12,16.107,14.47385139]
[1673517472325,13.03,16.12,16.107,1.92]
[1673517473036,46.53,16.119,16.107,1.92]
[1673517475568,13.03,16.12,16.107,14.47385139]
[1673517476427,13.03,16.12,16.107,1.92]
[1673517477483,13.03,16.12,16.107,14.47385139]
[1673517484524,46.53,16.119,16.107,14.47385139]
[1673517484926,13.03,16.12,16.107,14.47385139]
[1673517486719,46.53,16.119,16.107,14.47385139]
[1673517488416,13.03,16.12,16.107,14.47385139]
[1673517493044,13.03,16.12,16.108,20.0]
[1673517493375,13.03,16.12,16.109,26.06770278]
[1673517493583,13.03,16.12,16.109,13.51385139]
[1673517495476,13.03,16.12,16.109,0.96]
[1673517497592,46.52,16.123,16.11,25.68385139]
[1673517497785,46.52,16.125,16.111,20.96]
[1673517498113,46.51,16.127,16.112,20.0]
[1673517498322,116.9981,16.128,16.113,67.51]
[1673517498540,116.9981,16.128,16.114,20.0]
[1673517498752,116.9981,16.128,16.115,21.92]
[1673517499064,116.9981,16.128,16.115,34.47385139]
[1673517499273,116.9981,16.128,16.116,12.55385139]
[1673517499466,116.9981,16.128,16.117,20.96]
[1673517499677,116.9981,16.128,16.118,0.96]
[1673517500532,116.9981,16.128,16.117,0.96]
[1673517500849,116.9981,16.128,16.116,12.55385139]
[1673517502510,116.9981,16.128,16.117,0.96]
[1673517504945,116.9981,16.128,16.116,12.55385139]
[1673517505159,46.51,16.127,16.115,20.0]
[1673517505374,46.51,16.127,16.114,20.0]
[1673517507683,13.1,16.12,16.113,20.0]
[1673517507890,13.1,16.12,16.111,20.0]
[1673517508313,13.1,16.12,16.111,40.0]
[1673517508525,13.1,16.12,16.112,12.55385139]
[1673517508743,13.1,16.12,16.113,20.0]
[1673517509061,46.51,16.127,16.113,20.0]
[1673517509883,17.0,16.126,16.113,20.0]
[1673517510112,46.52,16.125,16.113,20.0]
[1673517515363,17.0,16.124,16.113,20.0]
[1673517515572,46.52,16.123,16.113,20.0]
[1673517515770,46.52,16.123,16.112,20.0]
[1673517516101,46.52,16.123,16.112,32.55385139]
[1673517516410,13.13,16.12,16.108,41.76588066]
[1673517516623,46.53,16.119,16.106,110.5154]
[1673517518297,46.53,16.119,16.106,123.06925139]
[1673517521983,46.53,16.119,16.106,12.55385139]
[1673517522193,17.0,16.118,16.106,12.55385139]
[1673517522424,46.53,16.119,16.106,12.55385139]
[1673517522626,65.7,16.12,16.106,12.55385139]
[1673517522836,65.7,16.12,16.107,0.96]
[1673517523243,13.18,16.12,16.108,12.55385139]
[1673517523875,13.18,16.12,16.109,39.21]
[1673517524191,13.18,16.12,16.11,12.55385139]
[1673517524401,13.18,16.12,16.111,1.92]
[1673517524830,13.18,16.12,16.111,14.47385139]
[1673517529340,46.51,16.127,16.111,14.47385139]
[1673517529555,158.2792,16.127,16.112,40.0]
[1673517529767,111.7692,16.127,16.114,20.0]
[1673517529989,111.7692,16.127,16.115,20.0]
[1673517530202,111.7692,16.127,16.116,0.96]
[1673517530830,111.7692,16.127,16.115,20.0]
[1673517533152,111.7692,16.127,16.116,1.92]
[1673517537538,158.2792,16.127,16.116,1.92]
[1673517538298,158.2792,16.127,16.116,0.96]
[1673517538488,158.2792,16.127,16.115,20.0]
[1673517538819,158.2792,16.127,16.116,0.96]
[1673517542805,158.2792,16.127,16.115,20.0]
[1673517544188,158.2792,16.127,16.113,20.0]
[1673517548373,20.0,16.125,16.113,20.0]
[1673517548583,63.52,16.124,16.111,20.0]
[1673517550921,46.51,16.126,16.111,20.0]
[1673517551117,17.0,16.125,16.112,20.0]
[1673517551443,46.52,16.124,16.113,20.0]
[1673517554469,46.51,16.126,16.114,20.0]
[1673517554688,46.51,16.126,16.115,20.0]
[1673517554900,46.51,16.126,16.115,32.21748023]
[1673517555105,111.7692,16.127,16.115,32.21748023]
[1673517555315,46.51,16.126,16.115,32.21748023]
[1673517555528,20.0,16.125,16.115,20.0]
[1673517555742,46.52,16.124,16.113,12.21748023]
[1673517555951,46.51,16.126,16.113,12.21748023]
[1673517556162,13.1,16.12,16.104,66.58]
[1673517556376,46.53,16.119,16.107,12.21748023]
[1673517558589,46.53,16.119,16.108,0.96]
[1673517558911,46.53,16.119,16.109,12.21748023]
[1673517559964,46.53,16.119,16.106,118.603]
[1673517560273,46.53,16.119,16.106,130.82048023]
[1673517565309,13.1,16.12,16.107,20.0]
[1673517565861,13.1,16.12,16.108,0.96]
[1673517568265,46.53,16.119,16.107,12.21748023]
[1673517575614,46.53,16.119,16.106,118.603]
[1673517575925,46.53,16.119,16.106,130.82048023]
[1673517577195,46.53,16.119,16.106,118.603]
[1673517577513,46.53,16.119,16.106,130.82048023]
[1673517578879,13.1,16.12,16.106,130.82048023]
[1673517579611,59.63,16.12,16.106,130.82048023]
[1673517581381,13.1,16.12,16.106,130.82048023]
[1673517582561,13.1,16.12,16.106,162.57048023]
[1673517584132,13.1,16.12,16.107,20.96]
[1673517588455,13.1,16.12,16.107,0.96]
[1673517588972,59.63,16.12,16.107,0.96]
[1673517592155,17.0,16.119,16.104,57.44]
[1673517592323,46.54,16.118,16.105,20.0]
[1673517597258,46.54,16.118,16.105,32.23041487]
[1673517597811,46.53,16.119,16.105,32.23041487]
[1673517600852,46.53,16.119,16.106,20.96]
[1673517602533,46.53,16.119,16.107,12.23041487]
[1673517602747,112.24,16.12,16.107,12.23041487]
[1673517603589,112.24,16.12,16.105,20.0]
[1673517603792,20.0,16.119,16.103,20.0]
[1673517604114,66.54,16.118,16.101,112.0089]
[1673517604332,13.13,16.11,16.101,112.0089]
[1673517606642,13.13,16.11,16.101,124.23931487]
[1673517607798,13.13,16.11,16.101,112.0089]
[1673517616830,13.13,16.11,16.098,47.91041487]
[1673517617023,17.0,16.109,16.095,131.122]
[1673517617235,63.56,16.109,16.095,131.122]
[1673517617456,63.56,16.109,16.095,110.902]
[1673517618307,63.56,16.109,16.091,15.82]
[1673517618526,63.56,16.109,16.094,20.0]
[1673517618716,20.0,16.108,16.094,20.0]
[1673517619026,63.57,16.107,16.094,20.0]
[1673517619242,63.57,16.107,16.093,20.0]
[1673517620187,46.56,16.109,16.093,20.0]
[1673517620507,46.56,16.109,16.094,1.92]
[1673517620695,46.56,16.109,16.094,21.92]
[1673517620906,46.56,16.109,16.095,20.0]
[1673517621339,17.0,16.108,16.095,20.0]
[1673517621557,17.0,16.108,16.094,20.0]
[1673517621558,46.57,16.107,16.094,20.0]
[1673517622388,13.13,16.1,16.091,15.82]
[1673517622594,13.13,16.1,16.074,76.1682]
[1673517622595,13.02241905,16.1,16.089,58.13150066]
[1673517622819,13.02241905,16.1,16.088,12.23041487]
[1673517623024,13.02241905,16.1,16.087,19.85]
[1673517625961,13.02241905,16.1,16.086,27.38041487]
[1673517626273,65.54241905,16.1,16.086,15.15]
[1673517626491,63.59,16.099,16.085,420.04452042]
[1673517627244,46.59,16.099,16.085,432.27493529]
[1673517627448,65.55241905,16.1,16.085,432.27493529]
[1673517627771,65.55241905,16.1,16.086,20.0]
[1673517628292,65.55241905,16.1,16.087,0.96]
[1673517628711,65.55241905,16.1,16.086,44.09041487]
[1673517629556,65.55241905,16.1,16.086,31.86]
[1673517630055,65.55241905,16.1,16.086,20.0]
[1673517630913,13.08,16.1,16.087,12.23041487]
[1673517631128,13.08,16.1,16.088,0.96]
[1673517631336,13.08,16.1,16.087,12.23041487]
[1673517631531,13.08,16.1,16.086,20.0]
[1673517631852,13.08,16.1,16.088,12.23661795]
[1673517632053,65.76,16.1,16.085,309.50572042]
[1673517632265,66.59,16.099,16.085,309.50572042]
[1673517632479,20.0,16.098,16.08,12.23661795]
[1673517632708,66.6,16.097,16.08,12.23661795]
[1673517632921,17.0,16.096,16.08,12.23661795]
[1673517633117,20.0,16.094,16.08,12.23661795]
[1673517633531,20.0,16.094,16.078,18.45]
[1673517634370,17.0,16.093,16.078,18.45]
[1673517635650,13.17,16.09,16.078,18.45]
[1673517636385,13.17,16.09,16.076,53.63661795]
[1673517636784,46.61,16.094,16.078,12.23661795]
[1673517636995,20.0,16.095,16.08,20.0]
[1673517637215,20.0,16.095,16.081,20.68]
[1673517637416,20.0,16.095,16.082,0.96]
[1673517637627,46.59,16.098,16.081,42.84]
[1673517637838,13.23,16.1,16.083,11.9085868]
[1673517638058,13.23,16.1,16.084,44.18]
[1673517638482,13.23,16.1,16.084,56.0885868]
[1673517638691,13.23,16.1,16.085,0.96]
[1673517638905,13.23,16.1,16.086,0.96]
[1673517639955,46.59,16.099,16.086,0.96]
[1673517640585,46.59,16.099,16.085,20.0]
[1673517640800,17.0,16.098,16.085,20.0]
[1673517641736,46.59,16.099,16.085,20.0]
[1673517641949,46.59,16.099,16.086,0.96]
[1673517642163,13.23,16.1,16.086,0.96]
[1673517642372,13.23,16.1,16.087,0.96]
[1673517642780,13.23,16.1,16.085,20.0]
[1673517642986,63.59,16.099,16.085,20.0]
[1673517643216,46.59,16.099,16.086,0.96]
[1673517643422,46.59,16.099,16.085,20.0]
[1673517644479,46.59,16.099,16.084,40.0]
[1673517644678,46.59,16.099,16.085,20.0]
[1673517646993,17.0,16.098,16.084,40.0]
[1673517647203,46.6,16.097,16.084,40.0]
[1673517647844,13.17,16.09,16.078,38.83]
[1673517648043,13.17,16.09,16.075,148.2884]
[1673517648260,13.17,16.09,16.076,20.0]
[1673517649093,17.0,16.089,16.076,20.0]
[1673517649311,63.62,16.089,16.076,20.0]
[1673517650052,46.62,16.089,16.076,20.0]
[1673517652153,46.62,16.089,16.075,129.4484]
[1673517652359,46.62,16.089,16.076,40.0]
[1673517653109,46.62,16.089,16.076,20.0]
[1673517653298,17.0,16.088,16.076,20.0]
[1673517654470,17.0,16.088,16.076,40.0]
[1673517655104,17.0,16.088,16.076,20.0]
[1673517657323,17.0,16.088,16.076,40.0]
[1673517657530,17.0,16.088,16.076,20.0]
[1673517658474,46.63,16.087,16.076,20.0]
[1673517659085,17.0,16.088,16.076,20.0]
[1673517659406,17.0,16.088,16.076,40.0]
[1673517660269,17.0,16.088,16.077,20.0]
[1673517660764,17.0,16.088,16.076,40.0]
[1673517661309,17.0,16.088,16.076,20.0]
[1673517662045,17.0,16.088,16.076,40.0]
[1673517662276,17.0,16.088,16.076,20.0]
[1673517666249,46.62,16.089,16.076,51.57734912]
[1673517666458,13.17,16.09,16.076,51.57734912]
[1673517666859,13.17,16.09,16.076,40.0]
[1673517667610,46.62,16.089,16.076,40.0]
[1673517667826,13.17,16.09,16.076,40.0]
[1673517668030,17.0,16.088,16.076,40.0]
[1673517668453,63.62,16.089,16.076,20.0]
[1673517669203,63.62,16.089,16.076,40.0]
[1673517671931,17.0,16.089,16.076,40.0]
[1673517672461,17.0,16.089,16.076,20.0]
[1673517672661,46.62,16.088,16.076,20.0]
[1673517673300,46.62,16.088,16.072,15.63]
[1673517673615,13.08,16.08,16.068,14.74]
[1673517673821,13.08,16.08,16.066,402.95994434]
[1673517673822,13.08,16.08,16.066,417.77994434]
[1673517674017,0.4374,16.076,16.066,417.77994434]
[1673517675275,0.4374,16.076,16.068,0.96]
[1673517675718,0.4374,16.076,16.069,0.96]
[1673517675931,0.4374,16.076,16.07,0.96]
[1673517676237,0.4374,16.076,16.068,15.28]
[1673517676450,0.4374,16.076,16.066,438.23994434]
[1673517677385,0.4374,16.076,16.068,15.66]
[1673517677726,0.4374,16.076,16.069,20.0]
[1673517678035,0.4374,16.076,16.069,20.96]
[1673517678247,0.4374,16.076,16.047,64.70912314]
[1673517678567,0.4374,16.076,16.045,122.259303]
[1673517678568,0.88959596,16.067,16.045,122.259303]
[1673517678760,0.88959596,16.059,16.045,122.259303]
[1673517678968,0.88959596,16.057,16.045,122.259303]
[1673517679179,0.88959596,16.055,16.045,122.259303]
[1673517679392,46.72,16.054,16.045,122.259303]
[1673517679595,0.96,16.053,16.045,122.259303]
[1673517679810,46.73,16.052,16.045,122.259303]
[1673517680017,20.0,16.05,16.045,122.259303]
[1673517680222,66.73,16.05,16.045,122.259303]
[1673517680431,37.0,16.049,16.045,122.259303]
[1673517680655,46.74,16.048,16.045,122.259303]
[1673517680868,37.0,16.047,16.045,122.259303]
[1673517681064,46.74,16.046,16.045,122.259303]
[1673517681273,20.0,16.046,16.045,122.259303]
[1673517681604,37.0,16.046,16.045,122.259303]
[1673517681818,20.0,16.046,16.045,122.259303]
[1673517682131,46.73,16.052,16.045,122.259303]
[1673517682446,65.86496728,16.056,16.045,122.259303]
[1673517682871,19.14496728,16.055,16.045,122.259303]
[1673517683056,66.72,16.054,16.045,122.259303]
[1673517683683,20.0,16.052,16.045,122.259303]
[1673517683919,46.73,16.051,16.045,122.259303]
[1673517684108,17.0,16.05,16.045,122.259303]
[1673517684325,46.74,16.049,16.045,122.259303]
[1673517684539,71.0935538,16.054,16.045,122.259303]
[1673517684540,46.73,16.051,16.045,122.259303]
[1673517684754,46.72,16.056,16.045,122.259303]
[1673517685164,46.71,16.058,16.045,122.259303]
[1673517685490,20.0,16.058,16.045,122.259303]
[1673517685893,17.0,16.057,16.045,122.259303]
[1673517686336,17.0,16.058,16.045,122.259303]
[1673517686846,47.67,16.057,16.045,122.259303]
[1673517687059,57.0,16.056,16.045,122.259303]
[1673517687281,47.68,16.055,16.045,122.259303]
[1673517687486,17.0,16.054,16.045,122.259303]
[1673517687701,46.72,16.053,16.045,122.259303]
[1673517688104,0.96,16.052,16.045,122.259303]
[1673517689912,46.73,16.051,16.045,122.259303]
[1673517690237,17.0,16.05,16.045,122.259303]
[1673517690451,0.96,16.05,16.045,122.259303]
[1673517692342,46.74,16.049,16.045,122.259303]
[1673517692866,0.96,16.048,16.045,122.259303]
[1673517693070,46.73,16.05,16.045,122.259303]
[1673517693264,71.0935538,16.056,16.045,122.259303]
[1673517693474,20.0,16.056,16.045,122.259303]
[1673517693708,20.0,16.058,16.045,122.259303]
[1673517693920,46.71,16.057,16.045,122.259303]
[1673517694118,20.0,16.056,16.045,122.259303]
[1673517694746,20.0,16.058,16.046,0.96]
[1673517694954,20.0,16.058,16.046,20.0]
[1673517696217,47.67,16.057,16.046,20.0]
[1673517696541,20.0,16.056,16.046,20.0]
[1673517697181,0.96,16.057,16.046,20.0]
[1673517697486,0.96,16.057,16.045,122.259303]
[1673517697680,17.96,16.057,16.045,122.259303]
[1673517697891,66.72,16.056,16.045,122.259303]
[1673517698320,17.96,16.055,16.045,122.259303]
[1673517699486,0.96,16.055,16.045,122.259303]
[1673517701491,46.72,16.054,16.045,122.259303]
[1673517701907,0.96,16.055,16.045,122.259303]
[1673517702441,20.0,16.056,16.045,122.259303]
[1673517702653,51.0935538,16.057,16.045,122.259303]
[1673517702835,66.72,16.056,16.045,122.259303]
[1673517703046,117.8135538,16.056,16.045,122.259303]
[1673517703695,20.0,16.054,16.045,122.259303]
[1673517703910,20.0,16.054,16.045,86.131903]
[1673517703911,64.68,16.053,16.045,86.131903]
[1673517704121,20.0,16.052,16.045,86.131903]
[1673517704439,64.69,16.051,16.045,86.131903]
[1673517704636,20.0,16.05,16.045,86.131903]
[1673517704856,46.74,16.049,16.045,86.131903]
[1673517705053,20.0,16.048,16.045,86.131903]
[1673517705268,46.74,16.047,16.045,86.131903]
[1673517705475,46.74,16.047,16.045,55.340503]
[1673517705679,20.0,16.046,16.045,55.340503]
[1673517705897,66.74,16.046,16.045,55.340503]
[1673517706104,84.7,16.046,16.045,55.340503]
[1673517706316,67.7,16.046,16.045,55.340503]
[1673517707366,67.7,16.046,16.045,54.903103]
[1673517707572,20.0,16.045,16.03,20.83833514]
[1673517707790,47.71,16.044,16.03,20.83833514]
[1673517707993,64.71,16.044,16.03,20.83833514]
[1673517708734,47.71,16.044,16.03,20.83833514]
[1673517708941,0.96,16.044,16.036,125.89917437]
[1673517709152,46.75,16.043,16.036,125.89917437]
[1673517710322,71.0935538,16.046,16.036,125.89917437]
[1673517711046,46.75,16.045,16.036,125.89917437]
[1673517711275,71.0935538,16.046,16.036,125.89917437]
[1673517711491,20.0,16.046,16.036,125.89917437]
[1673517711799,20.0,16.049,16.037,20.0]
[1673517711990,46.74,16.048,16.037,20.0]
[1673517712202,20.0,16.047,16.037,20.0]
[1673517712627,20.0,16.048,16.037,20.0]
[1673517712939,51.0935538,16.048,16.037,20.0]
[1673517713162,17.6,16.05,16.038,10.61113284]
[1673517713373,17.6,16.05,16.037,20.0]
[1673517714208,46.74,16.049,16.037,20.0]
[1673517714424,17.6,16.05,16.037,20.0]
[1673517714739,17.6,16.05,16.036,125.89917437]
[1673517714740,40.96,16.049,16.036,125.89917437]
[1673517714932,46.74,16.048,16.036,125.89917437]
[1673517715148,20.0,16.047,16.036,125.89917437]
[1673517715362,64.7,16.046,16.036,125.89917437]
[1673517715563,115.78298914,16.046,16.036,125.89917437]
[1673517715889,20.0,16.059,16.036,125.89917437]
[1673517716510,20.0,16.053,16.037,20.0]
[1673517716722,46.73,16.052,16.037,20.0]
[1673517717470,20.0,16.053,16.037,20.0]
[1673517717691,46.73,16.052,16.037,20.0]
[1673517718507,46.72,16.054,16.037,20.0]
[1673517718837,17.0,16.053,16.038,110.048]
[1673517719049,46.73,16.052,16.039,20.0]
[1673517719263,17.96,16.051,16.039,20.0]
[1673517719473,20.0,16.059,16.039,20.0]
[1673517719474,46.73,16.05,16.039,20.0]
[1673517719667,46.72,16.054,16.039,20.0]
[1673517719878,63.72,16.054,16.038,110.048]
[1673517720509,63.72,16.054,16.039,20.0]
[1673517721143,63.72,16.054,16.038,110.048]
[1673517721462,46.72,16.054,16.039,20.0]
[1673517722729,46.72,16.054,16.038,110.048]
[1673517723150,17.96,16.053,16.038,110.048]
[1673517723355,46.73,16.052,16.038,110.048]
[1673517723775,0.96,16.051,16.038,110.048]
[1673517723985,46.73,16.05,16.038,110.048]
[1673517725369,0.96,16.049,16.038,110.048]
[1673517726607,0.96,16.049,16.036,125.89917437]
[1673517726939,46.74,16.048,16.036,125.89917437]
[1673517727138,37.0,16.047,16.036,125.89917437]